[Event "Titled Tuesday Blitz May 2 Early 2023"]
[White "Sjugirov, Sanan"]
[Black "Hua, Lefong"]
[WhiteFideId "4189302"]
[BlackFideId "2602253"]
[WhiteElo "2569"]
[BlackElo "2305"]
[Result "0-1"]
[Round "06"]
[TimeControl "180+2"]
[Date "2023.05.02"]
[WhiteClock "0:01:44"]
[BlackClock "0:00:44"]

1. d4 {[%clk 0:03:00]}  Nf6 {[%clk 0:03:00]} 2. c4 {[%clk 0:03:01]}  c5 {[%clk 0:02:59]} 3. d5 {[%clk 0:03:01]}  e6 {[%clk 0:02:59]} 4. Nc3 {[%clk 0:03:01]}  exd5 {[%clk 0:03:00]} 5. cxd5 {[%clk 0:03:02]}  d6 {[%clk 0:03:01]} 6. e4 {[%clk 0:03:01]}  g6 {[%clk 0:03:01]} 7. f4 {[%clk 0:03:01]}  Bg7 {[%clk 0:02:58]} 8. Bb5+ {[%clk 0:03:02]}  Nbd7 {[%clk 0:02:59]} 9. a4 {[%clk 0:03:00]}  O-O {[%clk 0:02:51]} 10. Nf3 {[%clk 0:02:59]}  Re8 {[%clk 0:02:43]} 11. Nd2 {[%clk 0:02:49]}  Nxe4 {[%clk 0:02:25]} 12. Ncxe4 {[%clk 0:02:45]}  f5 {[%clk 0:02:24]} 13. O-O {[%clk 0:02:39]}  fxe4 {[%clk 0:02:24]} 14. Nc4 {[%clk 0:02:40]}  a6 {[%clk 0:02:04]} 15. Bxd7 {[%clk 0:02:39]}  Bxd7 {[%clk 0:02:04]} 16. Nxd6 {[%clk 0:02:35]}  Bxa4 {[%clk 0:02:03]} 17. Rxa4 {[%clk 0:02:27]}  Qxd6 {[%clk 0:02:02]} 18. f5 {[%clk 0:02:28]}  b5 {[%clk 0:01:53]} 19. Bf4 {[%clk 0:02:21]}  Qd7 {[%clk 0:01:47]} 20. Ra2 {[%clk 0:02:15]}  Bd4+ {[%clk 0:01:38]} 21. Kh1 {[%clk 0:02:15]}  Qxd5 {[%clk 0:01:34]} 22. fxg6 {[%clk 0:02:16]}  hxg6 {[%clk 0:01:34]} 23. b3 {[%clk 0:02:14]}  Rf8 {[%clk 0:01:31]} 24. h3 {[%clk 0:02:01]}  Rf6 {[%clk 0:01:29]} 25. Bh6 {[%clk 0:01:48]}  Rxf1+ {[%clk 0:01:11]} 26. Qxf1 {[%clk 0:01:49]}  Qxb3 {[%clk 0:01:09]} 27. Re2 {[%clk 0:01:50]}  Qf7 {[%clk 0:01:07]} 28. Qe1 {[%clk 0:01:49]}  Re8 {[%clk 0:01:01]} 29. Rxe4 {[%clk 0:01:41]}  Rxe4 {[%clk 0:00:51]} 30. Qxe4 {[%clk 0:01:42]}  Qf1+ {[%clk 0:00:52]} 31. Kh2 {[%clk 0:01:43]}  Bg1+ {[%clk 0:00:45]} 32. Kg3 {[%clk 0:01:43]}  Qf2+ {[%clk 0:00:44]} 33. Kg4 {[%clk 0:01:44]}  Qd4 {[%clk 0:00:44]} 0-1


[Site "https://www.chess.com"]

[Event "Titled Tuesday Blitz May 2 Early 2023"]
[White "Prohaszka, Peter"]
[Black "Galchenko, Matvey"]
[WhiteFideId "726265"]
[BlackFideId "24175480"]
[WhiteElo "2626"]
[BlackElo "2423"]
[Result "0-1"]
[Round "06"]
[TimeControl "180+2"]
[Date "2023.05.02"]
[WhiteClock "0:00:03"]
[BlackClock "0:00:08"]

1. d4 {[%clk 0:02:53]}  Nf6 {[%clk 0:02:58]} 2. c3 {[%clk 0:02:52]}  c5 {[%clk 0:02:48]} 3. Bg5 {[%clk 0:02:38]}  Ne4 {[%clk 0:02:34]} 4. Be3 {[%clk 0:02:35]}  cxd4 {[%clk 0:02:21]} 5. cxd4 {[%clk 0:02:34]}  d5 {[%clk 0:02:10]} 6. Nd2 {[%clk 0:02:15]}  Bf5 {[%clk 0:01:34]} 7. Nxe4 {[%clk 0:01:35]}  Bxe4 {[%clk 0:01:30]} 8. f3 {[%clk 0:01:35]}  Bg6 {[%clk 0:01:29]} 9. Nh3 {[%clk 0:01:31]}  Nc6 {[%clk 0:01:27]} 10. Nf4 {[%clk 0:01:30]}  e6 {[%clk 0:01:28]} 11. h4 {[%clk 0:01:28]}  h6 {[%clk 0:00:27]} 12. Nxg6 {[%clk 0:01:27]}  fxg6 {[%clk 0:00:28]} 13. Qd3 {[%clk 0:01:18]}  Kf7 {[%clk 0:00:28]} 14. a3 {[%clk 0:01:19]}  Bd6 {[%clk 0:00:23]} 15. Kf2 {[%clk 0:01:06]}  Qc7 {[%clk 0:00:22]} 16. Kg1 {[%clk 0:01:07]}  Rac8 {[%clk 0:00:20]} 17. Rc1 {[%clk 0:00:50]}  Bf4 {[%clk 0:00:17]} 18. Bxf4 {[%clk 0:00:36]}  Qxf4 {[%clk 0:00:17]} 19. e3 {[%clk 0:00:37]}  Qf6 {[%clk 0:00:17]} 20. Kf2 {[%clk 0:00:33]}  Rhd8 {[%clk 0:00:16]} 21. Be2 {[%clk 0:00:32]}  e5 {[%clk 0:00:17]} 22. dxe5 {[%clk 0:00:27]}  Nxe5 {[%clk 0:00:17]} 23. Qd4 {[%clk 0:00:28]}  Nc6 {[%clk 0:00:13]} 24. Qxf6+ {[%clk 0:00:26]}  gxf6 {[%clk 0:00:14]} 25. h5 {[%clk 0:00:24]}  g5 {[%clk 0:00:13]} 26. Bd3 {[%clk 0:00:21]}  Ne5 {[%clk 0:00:07]} 27. Bf5 {[%clk 0:00:21]}  Rc6 {[%clk 0:00:08]} 28. Rxc6 {[%clk 0:00:20]}  bxc6 {[%clk 0:00:08]} 29. Rc1 {[%clk 0:00:20]}  Rb8 {[%clk 0:00:06]} 30. Rc2 {[%clk 0:00:16]}  Ke7 {[%clk 0:00:06]} 31. Ke2 {[%clk 0:00:16]}  Kd6 {[%clk 0:00:06]} 32. b4 {[%clk 0:00:13]}  Nc4 {[%clk 0:00:05]} 33. Rc3 {[%clk 0:00:12]}  a5 {[%clk 0:00:06]} 34. bxa5 {[%clk 0:00:12]}  Nxa5 {[%clk 0:00:06]} 35. Bd3 {[%clk 0:00:11]}  c5 {[%clk 0:00:05]} 36. g4 {[%clk 0:00:05]}  Rb2+ {[%clk 0:00:05]} 37. Rc2 {[%clk 0:00:05]}  Rb3 {[%clk 0:00:05]} 38. Ra2 {[%clk 0:00:05]}  c4 {[%clk 0:00:05]} 39. Bc2 {[%clk 0:00:05]}  Rb8 {[%clk 0:00:05]} 40. a4 {[%clk 0:00:06]}  Kc5 {[%clk 0:00:05]} 41. Kd2 {[%clk 0:00:06]}  Nc6 {[%clk 0:00:05]} 42. a5 {[%clk 0:00:06]}  Ra8 {[%clk 0:00:04]} 43. a6 {[%clk 0:00:06]}  Kb6 {[%clk 0:00:04]} 44. Rb2+ {[%clk 0:00:05]}  Kc5 {[%clk 0:00:05]} 45. Ra2 {[%clk 0:00:05]}  Nb4 {[%clk 0:00:04]} 46. Ra5+ {[%clk 0:00:05]}  Kb6 {[%clk 0:00:05]} 47. Ra4 {[%clk 0:00:04]}  Kb5 {[%clk 0:00:05]} 48. Ra1 {[%clk 0:00:04]}  Rxa6 {[%clk 0:00:05]} 49. Rxa6 {[%clk 0:00:04]}  Nxa6 {[%clk 0:00:05]} 50. Bg6 {[%clk 0:00:05]}  Kc5 {[%clk 0:00:05]} 51. Kc3 {[%clk 0:00:05]}  Nc7 {[%clk 0:00:05]} 52. Bf7 {[%clk 0:00:05]}  Nb5+ {[%clk 0:00:05]} 53. Kd2 {[%clk 0:00:05]}  Nd6 {[%clk 0:00:06]} 54. Bg8 {[%clk 0:00:05]}  d4 {[%clk 0:00:06]} 55. exd4+ {[%clk 0:00:05]}  Kxd4 {[%clk 0:00:07]} 56. Be6 {[%clk 0:00:05]}  Nb7 {[%clk 0:00:06]} 57. Bf7 {[%clk 0:00:05]}  Nc5 {[%clk 0:00:07]} 58. Ke2 {[%clk 0:00:05]}  Nd7 {[%clk 0:00:07]} 59. Bg8 {[%clk 0:00:04]}  Ne5 {[%clk 0:00:07]} 60. Bh7 {[%clk 0:00:05]}  Nd3 {[%clk 0:00:06]} 61. Bf5 {[%clk 0:00:04]}  Nf4+ {[%clk 0:00:07]} 62. Kd2 {[%clk 0:00:05]}  c3+ {[%clk 0:00:07]} 63. Kc2 {[%clk 0:00:05]}  Nd5 {[%clk 0:00:08]} 64. Be4 {[%clk 0:00:04]}  Ne3+ {[%clk 0:00:09]} 65. Kb3 {[%clk 0:00:05]}  Nc4 {[%clk 0:00:08]} 66. Kc2 {[%clk 0:00:05]}  Nd2 {[%clk 0:00:08]} 67. Bd3 {[%clk 0:00:05]}  Nxf3 {[%clk 0:00:08]} 68. Bf5 {[%clk 0:00:02]}  Ne5 {[%clk 0:00:08]} 69. Bc8 {[%clk 0:00:02]}  Nc4 {[%clk 0:00:07]} 70. Bf5 {[%clk 0:00:03]}  Ne3+ {[%clk 0:00:08]} 0-1


[Site "https://www.chess.com"]

[Event "Titled Tuesday Blitz May 2 Early 2023"]
[White "Mekhitarian, Krikor Sevag"]
[Black "Jia, Haoxiang"]
[WhiteFideId "2107660"]
[BlackFideId "8602999"]
[WhiteElo "2604"]
[BlackElo "2331"]
[Result "0-1"]
[Round "06"]
[TimeControl "180+2"]
[Date "2023.05.02"]
[WhiteClock "0:00:01"]
[BlackClock "0:00:05"]

1. Nf3 {[%clk 0:03:00]}  Nf6 {[%clk 0:02:54]} 2. c4 {[%clk 0:03:00]}  e6 {[%clk 0:02:54]} 3. d4 {[%clk 0:02:58]}  d5 {[%clk 0:02:51]} 4. cxd5 {[%clk 0:02:58]}  exd5 {[%clk 0:02:51]} 5. Nc3 {[%clk 0:02:58]}  c6 {[%clk 0:02:51]} 6. Bf4 {[%clk 0:02:58]}  Bd6 {[%clk 0:02:51]} 7. Bxd6 {[%clk 0:02:58]}  Qxd6 {[%clk 0:02:52]} 8. e3 {[%clk 0:02:59]}  O-O {[%clk 0:02:52]} 9. Bd3 {[%clk 0:02:59]}  Bg4 {[%clk 0:02:49]} 10. h3 {[%clk 0:02:57]}  Bh5 {[%clk 0:02:48]} 11. Qb3 {[%clk 0:02:22]}  Nbd7 {[%clk 0:02:39]} 12. g4 {[%clk 0:02:09]}  Bg6 {[%clk 0:02:39]} 13. Bxg6 {[%clk 0:02:09]}  hxg6 {[%clk 0:02:39]} 14. Qc2 {[%clk 0:02:02]}  Rac8 {[%clk 0:02:35]} 15. Rd1 {[%clk 0:02:00]}  Rfe8 {[%clk 0:02:32]} 16. Kf1 {[%clk 0:02:00]}  Ne4 {[%clk 0:02:24]} 17. Nxe4 {[%clk 0:02:00]}  Rxe4 {[%clk 0:02:23]} 18. Nd2 {[%clk 0:01:57]}  Ree8 {[%clk 0:02:21]} 19. Kg2 {[%clk 0:01:58]}  c5 {[%clk 0:02:10]} 20. Qd3 {[%clk 0:01:51]}  c4 {[%clk 0:02:07]} 21. Qe2 {[%clk 0:01:48]}  b5 {[%clk 0:02:05]} 22. Rc1 {[%clk 0:01:44]}  b4 {[%clk 0:02:05]} 23. Rc2 {[%clk 0:01:44]}  Nb6 {[%clk 0:02:00]} 24. b3 {[%clk 0:01:33]}  cxb3 {[%clk 0:01:44]} 25. Nxb3 {[%clk 0:01:25]}  Nc4 {[%clk 0:01:39]} 26. Rhc1 {[%clk 0:01:20]}  Qd7 {[%clk 0:01:29]} 27. Nc5 {[%clk 0:01:09]}  Qe7 {[%clk 0:01:20]} 28. Qf3 {[%clk 0:01:04]}  Rcd8 {[%clk 0:01:17]} 29. Nd3 {[%clk 0:01:04]}  g5 {[%clk 0:01:10]} 30. Nb2 {[%clk 0:00:57]}  Nb6 {[%clk 0:00:39]} 31. Rc6 {[%clk 0:00:42]}  Rd6 {[%clk 0:00:28]} 32. Rc7 {[%clk 0:00:32]}  Rd7 {[%clk 0:00:28]} 33. Rxd7 {[%clk 0:00:28]}  Qxd7 {[%clk 0:00:11]} 34. Nd3 {[%clk 0:00:29]}  a5 {[%clk 0:00:10]} 35. Ne5 {[%clk 0:00:27]}  Qe7 {[%clk 0:00:08]} 36. Rc6 {[%clk 0:00:25]}  Nc4 {[%clk 0:00:07]} 37. Nxc4 {[%clk 0:00:20]}  dxc4 {[%clk 0:00:08]} 38. Rxc4 {[%clk 0:00:21]}  Rb8 {[%clk 0:00:08]} 39. Qc6 {[%clk 0:00:13]}  a4 {[%clk 0:00:06]} 40. Qxa4 {[%clk 0:00:10]}  Qe4+ {[%clk 0:00:07]} 41. Kh2 {[%clk 0:00:10]}  Qf3 {[%clk 0:00:05]} 42. Qc2 {[%clk 0:00:10]}  b3 {[%clk 0:00:05]} 43. axb3 {[%clk 0:00:10]}  g6 {[%clk 0:00:06]} 44. Rc3 {[%clk 0:00:04]}  Ra8 {[%clk 0:00:05]} 45. Qd3 {[%clk 0:00:01]}  Ra2 {[%clk 0:00:05]} 0-1


[Site "https://www.chess.com"]

[Event "Titled Tuesday Blitz May 2 Early 2023"]
[White "Gharibyan, Mamikon"]
[Black "Tasev, Dejan"]
[WhiteFideId "13308300"]
[BlackFideId "936618"]
[WhiteElo "2445"]
[BlackElo "2244"]
[Result "1-0"]
[Round "06"]
[TimeControl "180+2"]
[Date "2023.05.02"]
[WhiteClock "0:01:35"]
[BlackClock "0:00:49"]

1. e4 {[%clk 0:03:00]}  e5 {[%clk 0:02:58]} 2. Nf3 {[%clk 0:03:01]}  Nc6 {[%clk 0:02:57]} 3. Bb5 {[%clk 0:03:01]}  a6 {[%clk 0:02:56]} 4. Ba4 {[%clk 0:03:00]}  Nf6 {[%clk 0:02:56]} 5. Bxc6 {[%clk 0:02:59]}  dxc6 {[%clk 0:02:55]} 6. d3 {[%clk 0:03:00]}  Nd7 {[%clk 0:02:53]} 7. Nbd2 {[%clk 0:02:55]}  f6 {[%clk 0:02:52]} 8. a4 {[%clk 0:02:54]}  Bd6 {[%clk 0:02:52]} 9. Nc4 {[%clk 0:02:53]}  Nf8 {[%clk 0:02:52]} 10. a5 {[%clk 0:02:42]}  Ne6 {[%clk 0:02:49]} 11. Be3 {[%clk 0:02:41]}  c5 {[%clk 0:02:41]} 12. c3 {[%clk 0:02:33]}  O-O {[%clk 0:02:36]} 13. O-O {[%clk 0:02:34]}  Kh8 {[%clk 0:02:31]} 14. Re1 {[%clk 0:02:32]}  Bd7 {[%clk 0:02:30]} 15. Nxd6 {[%clk 0:02:31]}  cxd6 {[%clk 0:02:30]} 16. d4 {[%clk 0:02:32]}  cxd4 {[%clk 0:02:19]} 17. cxd4 {[%clk 0:02:33]}  exd4 {[%clk 0:02:16]} 18. Nxd4 {[%clk 0:02:34]}  Nxd4 {[%clk 0:02:13]} 19. Qxd4 {[%clk 0:02:28]}  Bc6 {[%clk 0:02:13]} 20. Bf4 {[%clk 0:02:25]}  d5 {[%clk 0:02:09]} 21. e5 {[%clk 0:02:25]}  fxe5 {[%clk 0:02:07]} 22. Bxe5 {[%clk 0:02:25]}  Rf7 {[%clk 0:01:58]} 23. Ra3 {[%clk 0:02:24]}  Kg8 {[%clk 0:01:47]} 24. Rg3 {[%clk 0:02:22]}  Qf8 {[%clk 0:01:38]} 25. Ree3 {[%clk 0:02:16]}  Re8 {[%clk 0:01:31]} 26. h4 {[%clk 0:02:09]}  Bd7 {[%clk 0:01:08]} 27. Bxg7 {[%clk 0:01:40]}  Rxg7 {[%clk 0:01:04]} 28. Rxg7+ {[%clk 0:01:39]}  Qxg7 {[%clk 0:01:04]} 29. Rg3 {[%clk 0:01:39]}  Qxg3 {[%clk 0:01:03]} 30. fxg3 {[%clk 0:01:39]}  Be6 {[%clk 0:00:55]} 31. h5 {[%clk 0:01:38]}  Re7 {[%clk 0:00:49]} 32. Qf6 {[%clk 0:01:35]} 1-0


[Site "https://www.chess.com"]

[Event "Titled Tuesday Blitz May 2 Early 2023"]
[White "Cherniaiev, Tykhon"]
[Black "Goncalves, Davi Sulzbacher"]
[WhiteFideId "14182360"]
[BlackFideId "2154510"]
[WhiteElo "2450"]
[BlackElo "2182"]
[Result "1/2-1/2"]
[Round "06"]
[TimeControl "180+2"]
[Date "2023.05.02"]
[WhiteClock "0:00:07"]
[BlackClock "0:00:19"]

1. Nf3 {[%clk 0:03:00]}  Nf6 {[%clk 0:02:59]} 2. d4 {[%clk 0:03:01]}  e6 {[%clk 0:02:59]} 3. c4 {[%clk 0:03:01]}  Bb4+ {[%clk 0:02:57]} 4. Bd2 {[%clk 0:03:01]}  Qe7 {[%clk 0:02:55]} 5. g3 {[%clk 0:03:01]}  O-O {[%clk 0:02:54]} 6. Bg2 {[%clk 0:03:01]}  Bxd2+ {[%clk 0:02:43]} 7. Nbxd2 {[%clk 0:03:01]}  d6 {[%clk 0:02:43]} 8. O-O {[%clk 0:03:01]}  e5 {[%clk 0:02:41]} 9. dxe5 {[%clk 0:02:46]}  dxe5 {[%clk 0:02:31]} 10. Qc2 {[%clk 0:02:41]}  Nc6 {[%clk 0:02:22]} 11. Ne4 {[%clk 0:02:33]}  Bf5 {[%clk 0:02:05]} 12. Nxf6+ {[%clk 0:02:33]}  Qxf6 {[%clk 0:02:06]} 13. Qb3 {[%clk 0:02:33]}  e4 {[%clk 0:02:03]} 14. Nh4 {[%clk 0:02:16]}  Nd4 {[%clk 0:01:55]} 15. Qxb7 {[%clk 0:01:54]}  Nxe2+ {[%clk 0:01:54]} 16. Kh1 {[%clk 0:01:53]}  Rab8 {[%clk 0:01:40]} 17. Qd5 {[%clk 0:01:51]}  Bg6 {[%clk 0:01:28]} 18. Nxg6 {[%clk 0:01:45]}  hxg6 {[%clk 0:01:29]} 19. Bxe4 {[%clk 0:01:14]}  Rxb2 {[%clk 0:01:07]} 20. Qc5 {[%clk 0:00:51]}  Nd4 {[%clk 0:00:33]} 21. Rad1 {[%clk 0:00:44]}  Ne6 {[%clk 0:00:29]} 22. Qxa7 {[%clk 0:00:42]}  c5 {[%clk 0:00:29]} 23. Qa3 {[%clk 0:00:12]}  Rxf2 {[%clk 0:00:25]} 24. Rxf2 {[%clk 0:00:13]}  Qxf2 {[%clk 0:00:25]} 25. Bd5 {[%clk 0:00:13]}  Rd8 {[%clk 0:00:20]} 26. Qa7 {[%clk 0:00:06]}  Rxd5 {[%clk 0:00:15]} 27. Qa8+ {[%clk 0:00:05]}  Rd8 {[%clk 0:00:16]} 28. Rxd8+ {[%clk 0:00:05]}  Nxd8 {[%clk 0:00:17]} 29. Qxd8+ {[%clk 0:00:06]}  Kh7 {[%clk 0:00:17]} 30. Qh4+ {[%clk 0:00:05]}  Kg8 {[%clk 0:00:18]} 31. Qd8+ {[%clk 0:00:06]}  Kh7 {[%clk 0:00:18]} 32. Qh4+ {[%clk 0:00:07]}  Kg8 {[%clk 0:00:19]} 33. Qd8+ {[%clk 0:00:07]} 1/2-1/2


[Site "https://www.chess.com"]

[Event "Titled Tuesday Blitz May 2 Early 2023"]
[White "Demin, Vladimir"]
[Black "Tanenbaum, Zachary"]
[WhiteFideId "4167457"]
[BlackFideId "2060850"]
[WhiteElo "2430"]
[BlackElo "2175"]
[Result "0-1"]
[Round "06"]
[TimeControl "180+2"]
[Date "2023.05.02"]
[WhiteClock "0:00:53"]
[BlackClock "0:01:13"]

1. d4 {[%clk 0:03:00]}  d5 {[%clk 0:03:00]} 2. Nc3 {[%clk 0:03:00]}  Nf6 {[%clk 0:02:59]} 3. Bf4 {[%clk 0:03:01]}  a6 {[%clk 0:02:59]} 4. e3 {[%clk 0:03:01]}  Bf5 {[%clk 0:03:00]} 5. f3 {[%clk 0:03:00]}  e6 {[%clk 0:03:00]} 6. g4 {[%clk 0:03:01]}  Bg6 {[%clk 0:03:00]} 7. h4 {[%clk 0:03:02]}  h5 {[%clk 0:03:00]} 8. g5 {[%clk 0:03:02]}  Nfd7 {[%clk 0:03:01]} 9. Bd3 {[%clk 0:03:03]}  Bxd3 {[%clk 0:03:01]} 10. Qxd3 {[%clk 0:03:04]}  g6 {[%clk 0:03:01]} 11. O-O-O {[%clk 0:03:03]}  Bg7 {[%clk 0:03:01]} 12. e4 {[%clk 0:03:03]}  c6 {[%clk 0:03:00]} 13. Bd6 {[%clk 0:02:57]}  Nb6 {[%clk 0:02:59]} 14. Bc5 {[%clk 0:02:51]}  N8d7 {[%clk 0:02:53]} 15. Bd6 {[%clk 0:02:39]}  Nc4 {[%clk 0:02:51]} 16. Bf4 {[%clk 0:02:38]}  O-O {[%clk 0:02:50]} 17. b3 {[%clk 0:02:34]}  Na3 {[%clk 0:02:30]} 18. Bd6 {[%clk 0:02:24]}  Qa5 {[%clk 0:02:23]} 19. Kb2 {[%clk 0:02:10]}  c5 {[%clk 0:02:17]} 20. Bxf8 {[%clk 0:02:07]}  Rxf8 {[%clk 0:02:16]} 21. Nge2 {[%clk 0:02:07]}  cxd4 {[%clk 0:02:04]} 22. Nxd4 {[%clk 0:02:01]}  Nc5 {[%clk 0:02:05]} 23. Qd2 {[%clk 0:01:52]}  Qb4 {[%clk 0:01:24]} 24. Kc1 {[%clk 0:01:19]}  Rc8 {[%clk 0:01:23]} 25. exd5 {[%clk 0:01:15]}  Nxb3+ {[%clk 0:01:21]} 26. axb3 {[%clk 0:01:08]}  Rxc3 {[%clk 0:01:21]} 27. Rh2 {[%clk 0:01:00]}  Nxc2 {[%clk 0:01:13]} 28. Nxc2 {[%clk 0:00:55]}  Qa3+ {[%clk 0:01:13]} 29. Kb1 {[%clk 0:00:53]}  Rxb3# {[%clk 0:01:13]} 0-1


[Site "https://www.chess.com"]

[Event "Titled Tuesday Blitz May 2 Early 2023"]
[White "Papasimakopoulos, Alexandros"]
[Black "Krsnik Cohar, Ivan Vihor"]
[WhiteFideId "4244125"]
[BlackFideId "14520044"]
[WhiteElo "2359"]
[BlackElo "2414"]
[Result "1-0"]
[Round "06"]
[TimeControl "180+2"]
[Date "2023.05.02"]
[WhiteClock "0:00:20"]
[BlackClock "0:00:02"]

1. d4 {[%clk 0:03:00]}  Nf6 {[%clk 0:02:59]} 2. c4 {[%clk 0:03:00]}  e6 {[%clk 0:02:59]} 3. Nc3 {[%clk 0:03:00]}  d5 {[%clk 0:03:00]} 4. cxd5 {[%clk 0:03:00]}  exd5 {[%clk 0:02:59]} 5. Bg5 {[%clk 0:03:00]}  Be7 {[%clk 0:02:59]} 6. e3 {[%clk 0:03:01]}  O-O {[%clk 0:03:00]} 7. Bd3 {[%clk 0:02:58]}  h6 {[%clk 0:02:57]} 8. Bh4 {[%clk 0:02:58]}  c5 {[%clk 0:02:57]} 9. dxc5 {[%clk 0:02:57]}  Nc6 {[%clk 0:02:51]} 10. Nf3 {[%clk 0:02:57]}  Bxc5 {[%clk 0:02:49]} 11. O-O {[%clk 0:02:56]}  Be6 {[%clk 0:02:21]} 12. Rc1 {[%clk 0:02:53]}  Be7 {[%clk 0:02:22]} 13. Bb1 {[%clk 0:02:51]}  Qb6 {[%clk 0:02:01]} 14. Qc2 {[%clk 0:02:48]}  Nb4 {[%clk 0:01:57]} 15. Qe2 {[%clk 0:02:46]}  Rfd8 {[%clk 0:01:31]} 16. a3 {[%clk 0:02:43]}  Na6 {[%clk 0:01:30]} 17. Qc2 {[%clk 0:02:39]}  Nc5 {[%clk 0:01:17]} 18. Bxf6 {[%clk 0:02:27]}  Bxf6 {[%clk 0:01:17]} 19. Qh7+ {[%clk 0:02:27]}  Kf8 {[%clk 0:01:18]} 20. b4 {[%clk 0:02:27]}  Nd7 {[%clk 0:01:11]} 21. Rfd1 {[%clk 0:02:11]}  Ne5 {[%clk 0:01:11]} 22. Nxe5 {[%clk 0:02:06]}  Bxe5 {[%clk 0:01:11]} 23. Ne2 {[%clk 0:02:05]}  Rac8 {[%clk 0:01:00]} 24. Rxc8 {[%clk 0:02:04]}  Rxc8 {[%clk 0:01:01]} 25. Bf5 {[%clk 0:01:56]}  Qa6 {[%clk 0:00:42]} 26. Ng3 {[%clk 0:01:32]}  Bxg3 {[%clk 0:00:16]} 27. hxg3 {[%clk 0:01:33]}  Qa4 {[%clk 0:00:11]} 28. Rf1 {[%clk 0:01:13]}  Rc6 {[%clk 0:00:12]} 29. Bxe6 {[%clk 0:01:13]}  Rxe6 {[%clk 0:00:12]} 30. Qh8+ {[%clk 0:01:09]}  Ke7 {[%clk 0:00:13]} 31. Qxg7 {[%clk 0:01:09]}  Qxa3 {[%clk 0:00:13]} 32. Qd4 {[%clk 0:01:08]}  Qb3 {[%clk 0:00:10]} 33. Rc1 {[%clk 0:01:05]}  Rc6 {[%clk 0:00:10]} 34. Rxc6 {[%clk 0:01:03]}  bxc6 {[%clk 0:00:10]} 35. Qxa7+ {[%clk 0:01:04]}  Ke6 {[%clk 0:00:09]} 36. Qd4 {[%clk 0:00:59]}  Qc4 {[%clk 0:00:05]} 37. Qxc4 {[%clk 0:00:50]}  dxc4 {[%clk 0:00:03]} 38. Kf1 {[%clk 0:00:50]}  Kd5 {[%clk 0:00:01]} 39. Ke2 {[%clk 0:00:50]}  c3 {[%clk 0:00:01]} 40. Kd3 {[%clk 0:00:50]}  c2 {[%clk 0:00:02]} 41. Kxc2 {[%clk 0:00:46]}  Kc4 {[%clk 0:00:03]} 42. e4 {[%clk 0:00:30]}  Kxb4 {[%clk 0:00:03]} 43. e5 {[%clk 0:00:27]}  Kc4 {[%clk 0:00:03]} 44. f4 {[%clk 0:00:23]}  h5 {[%clk 0:00:02]} 45. Kd2 {[%clk 0:00:20]}  Kd4 {[%clk 0:00:02]} 46. Kc2 {[%clk 0:00:20]} 1-0


[Site "https://www.chess.com"]

[Event "Titled Tuesday Blitz May 2 Early 2023"]
[White "Alinasab, Mobina"]
[Black "Preotu, Razvan"]
[WhiteFideId "12528897"]
[BlackFideId "2613280"]
[WhiteElo "2149"]
[BlackElo "2407"]
[Result "1-0"]
[Round "06"]
[TimeControl "180+2"]
[Date "2023.05.02"]
[WhiteClock "0:00:10"]
[BlackClock "0:00:02"]

1. Nf3 {[%clk 0:02:57]}  c5 {[%clk 0:02:59]} 2. e4 {[%clk 0:02:51]}  d6 {[%clk 0:02:59]} 3. d4 {[%clk 0:02:51]}  cxd4 {[%clk 0:03:00]} 4. Nxd4 {[%clk 0:02:52]}  Nf6 {[%clk 0:03:00]} 5. Nc3 {[%clk 0:02:52]}  a6 {[%clk 0:03:01]} 6. h3 {[%clk 0:02:53]}  e5 {[%clk 0:03:01]} 7. Nde2 {[%clk 0:02:53]}  h5 {[%clk 0:03:00]} 8. Bg5 {[%clk 0:02:54]}  Be6 {[%clk 0:03:00]} 9. Bxf6 {[%clk 0:02:54]}  Qxf6 {[%clk 0:03:00]} 10. Nd5 {[%clk 0:02:55]}  Qd8 {[%clk 0:03:01]} 11. Qd3 {[%clk 0:02:56]}  Nd7 {[%clk 0:02:58]} 12. O-O-O {[%clk 0:02:56]}  g6 {[%clk 0:02:59]} 13. Kb1 {[%clk 0:02:55]}  Nc5 {[%clk 0:02:37]} 14. Qa3 {[%clk 0:02:48]}  Bg7 {[%clk 0:02:20]} 15. g3 {[%clk 0:02:44]}  O-O {[%clk 0:01:56]} 16. Bg2 {[%clk 0:02:43]}  b5 {[%clk 0:01:51]} 17. f4 {[%clk 0:02:29]}  Bxd5 {[%clk 0:01:17]} 18. Rxd5 {[%clk 0:02:27]}  exf4 {[%clk 0:01:17]} 19. gxf4 {[%clk 0:02:21]}  b4 {[%clk 0:01:17]} 20. Qe3 {[%clk 0:02:16]}  Qe7 {[%clk 0:00:31]} 21. e5 {[%clk 0:02:14]}  Nb7 {[%clk 0:00:19]} 22. Qd2 {[%clk 0:01:43]}  Rad8 {[%clk 0:00:17]} 23. Qxb4 {[%clk 0:01:42]}  Rfe8 {[%clk 0:00:14]} 24. Rhd1 {[%clk 0:01:34]}  a5 {[%clk 0:00:12]} 25. Qa3 {[%clk 0:01:32]}  Qh4 {[%clk 0:00:08]} 26. Qb3 {[%clk 0:00:31]}  Nc5 {[%clk 0:00:07]} 27. Qg3 {[%clk 0:00:31]}  Qxg3 {[%clk 0:00:03]} 28. Nxg3 {[%clk 0:00:32]}  Ne6 {[%clk 0:00:03]} 29. Rxd6 {[%clk 0:00:16]}  Rxd6 {[%clk 0:00:04]} 30. exd6 {[%clk 0:00:16]}  Nxf4 {[%clk 0:00:04]} 31. Bc6 {[%clk 0:00:16]}  Rd8 {[%clk 0:00:04]} 32. d7 {[%clk 0:00:16]}  Nxh3 {[%clk 0:00:04]} 33. Ne4 {[%clk 0:00:16]}  Nf4 {[%clk 0:00:03]} 34. Nc5 {[%clk 0:00:16]}  Bf6 {[%clk 0:00:03]} 35. Nb7 {[%clk 0:00:16]}  Ne6 {[%clk 0:00:02]} 36. Nxd8 {[%clk 0:00:15]}  Bxd8 {[%clk 0:00:02]} 37. Bd5 {[%clk 0:00:14]}  Kf8 {[%clk 0:00:02]} 38. Bxe6 {[%clk 0:00:12]}  fxe6 {[%clk 0:00:03]} 39. c4 {[%clk 0:00:13]}  g5 {[%clk 0:00:02]} 40. c5 {[%clk 0:00:13]}  Ke7 {[%clk 0:00:03]} 41. c6 {[%clk 0:00:12]}  g4 {[%clk 0:00:03]} 42. Kc2 {[%clk 0:00:12]}  g3 {[%clk 0:00:03]} 43. Kd3 {[%clk 0:00:11]}  Bb6 {[%clk 0:00:03]} 44. Ke2 {[%clk 0:00:08]}  g2 {[%clk 0:00:03]} 45. d8=Q+ {[%clk 0:00:08]}  Bxd8 {[%clk 0:00:04]} 46. Kf2 {[%clk 0:00:08]}  Bb6+ {[%clk 0:00:01]} 47. Kxg2 {[%clk 0:00:09]}  e5 {[%clk 0:00:01]} 48. Rd7+ {[%clk 0:00:10]}  Ke6 {[%clk 0:00:01]} 49. Kf3 {[%clk 0:00:08]}  h4 {[%clk 0:00:01]} 50. Ke4 {[%clk 0:00:09]}  h3 {[%clk 0:00:01]} 51. Rh7 {[%clk 0:00:09]}  Kd6 {[%clk 0:00:01]} 52. Rh6+ {[%clk 0:00:09]}  Kc7 {[%clk 0:00:02]} 53. Kd5 {[%clk 0:00:09]}  Bd4 {[%clk 0:00:02]} 54. Rxh3 {[%clk 0:00:09]}  Bxb2 {[%clk 0:00:01]} 55. Rh7+ {[%clk 0:00:10]}  Kb6 {[%clk 0:00:01]} 56. Rb7+ {[%clk 0:00:10]}  Ka6 {[%clk 0:00:02]} 57. Rxb2 {[%clk 0:00:10]} 1-0


[Site "https://www.chess.com"]